bitfinex/quotes_SOLUSD_20241031
["timestamp","ask_amount","ask_price","bid_price","bid_amount"]
[1730348192212,20.0,174.82,174.78,15.91624664]
[1730348192506,30.19484664,174.82,174.78,5.7214]
[1730348192699,10.19484664,174.79,174.74,25.43094664]
[1730348192897,100.19484664,174.82,174.77,10.19484664]
[1730348193403,100.19484664,174.82,174.75,23.776884]
[1730348193610,10.19484664,174.81,174.76,10.19484664]
[1730348193995,10.19484664,174.81,174.76,15.91674664]
[1730348194814,105.91494664,174.82,174.77,10.19484664]
[1730348195611,20.0,174.79,174.76,14.3053]
[1730348195808,30.19484664,174.79,174.74,25.43094664]
[1730348196110,30.19484664,174.79,174.74,31.15364664]
[1730348196687,10.19484664,174.78,174.74,20.9588]
[1730348198098,10.19484664,174.78,174.73,10.19484664]
[1730348198099,80.19484664,174.78,174.73,10.19484664]
[1730348198910,70.0,174.78,174.74,10.19484664]
[1730348199113,70.0,174.78,174.73,10.19484664]
[1730348199408,75.7216,174.78,174.73,10.19484664]
[1730348200493,20.0,174.77,174.73,15.91774664]
[1730348204806,30.19484664,174.77,174.72,24.50264664]
[1730348204995,35.91674664,174.77,174.72,14.3078]
[1730348205195,10.19484664,174.75,174.7,31.91854664]
[1730348205417,20.0,174.74,174.7,31.91854664]
[1730348205598,30.19484664,174.74,174.7,21.7237]
[1730348205797,20.0,174.74,174.7,31.91854664]
[1730348206815,20.0,174.74,174.7,26.19454664]
[1730348208612,25.7228,174.74,174.7,26.19454664]
[1730348209206,10.19484664,174.78,174.73,10.19484664]
[1730348209404,51.499348,174.97,174.7,42.9306]
[1730348209405,2.98115328,175.27,174.97,20.12549]
[1730348209606,1.40008841,175.16,175.14,0.1]
[1730348209800,70.0,175.26,175.13,0.1]
[1730348210417,35.94797742,175.25,175.24,25.35940073]
[1730348210723,70.0,175.26,175.24,25.35940073]
[1730348210910,70.0,175.26,175.25,25.35940073]
[1730348211221,70.5952755,175.28,175.25,25.35940073]
[1730348211813,70.5952755,175.28,175.24,25.35940073]
[1730348212723,20.0,175.25,175.23,25.35940073]
[1730348213109,70.0,175.26,175.23,25.35940073]
[1730348213925,70.0,175.26,175.21,25.35940073]
[1730348214229,95.35940073,175.26,175.22,3.71667883]
[1730348214428,95.35940073,175.26,175.21,25.35940073]
[1730348214748,25.35940073,175.25,175.22,3.71666899]
[1730348215029,20.0,175.25,175.2,25.35940073]
[1730348215327,20.0,175.25,175.21,6.575681]
[1730348215526,20.0,175.25,175.2,25.35940073]
[1730348215527,20.0,175.25,175.22,3.71668926]
[1730348215722,20.0,175.25,175.2,25.35940073]
[1730348215928,20.0,175.25,175.21,6.57577668]
[1730348216124,20.0,175.25,175.22,3.71674334]
[1730348216437,20.0,175.25,175.2,25.35940073]
[1730348216731,20.0,175.25,175.21,3.71672156]
[1730348216907,20.0,175.25,175.22,1.42950829]
[1730348217226,20.0,175.25,175.2,25.35940073]
[1730348217430,20.0,175.25,175.21,1.42950608]
[1730348217606,20.0,175.25,175.22,1.42950608]
[1730348217806,20.0,175.25,175.2,25.35940073]
[1730348218002,25.7062,175.25,175.21,1.42951671]
[1730348218307,20.0,175.25,175.22,1.42951671]
[1730348218509,20.0,175.25,175.2,25.35940073]
[1730348219714,20.0,175.25,175.19,23.776884]
[1730348219911,25.35940073,175.24,175.19,23.776884]
[1730348220123,20.0,175.23,175.19,23.776884]
[1730348220426,20.0,175.23,175.19,25.35940073]
[1730348220630,45.35940073,175.23,175.18,23.776884]
[1730348220831,45.35940073,175.23,175.18,49.13628473]
[1730348221131,20.0,175.23,175.18,49.13628473]
[1730348222623,20.0,175.24,175.18,49.13628473]
[1730348223823,45.35940073,175.24,175.19,25.35940073]
[1730348224031,45.35940073,175.24,175.03,25.35940073]
[1730348224032,70.0,175.13,175.03,25.35940073]
[1730348224215,25.35940073,175.08,175.03,25.35940073]
[1730348224419,6.89277902,175.07,175.0,0.1]
[1730348224951,6.89277902,175.07,175.04,25.35940073]
[1730348225106,25.35940073,175.09,175.04,25.35940073]
[1730348225532,25.35940073,175.09,175.05,23.776884]
[1730348225708,25.35940073,175.08,175.04,23.776884]
[1730348225906,25.35940073,175.08,175.03,25.35940073]
[1730348226123,25.35940073,175.09,175.04,25.35940073]
[1730348227032,95.35940073,175.11,175.06,25.35940073]
[1730348227230,25.35940073,175.1,175.06,23.776884]
[1730348227931,25.35940073,175.09,175.06,23.776884]
[1730348228139,25.35940073,175.09,175.05,23.776884]
[1730348228507,25.35940073,175.09,175.03,25.35940073]
[1730348228716,25.35940073,175.09,175.04,49.13628473]
[1730348229123,25.35940073,175.1,175.04,49.13628473]
[1730348229534,101.07010073,175.11,175.05,25.35940073]
[1730348229834,25.35940073,175.1,175.06,23.776884]
[1730348230027,25.35940073,175.1,175.05,23.776884]
[1730348230406,35.88191073,175.1,175.04,15.88191073]
[1730348230638,15.88191073,175.09,175.04,39.65879473]
[1730348230932,15.88191073,175.08,175.04,23.776884]
[1730348231609,15.88191073,175.09,175.04,39.65879473]
[1730348232528,21.59301073,175.1,175.04,39.65879473]
[1730348233236,15.88191073,175.09,175.04,23.776884]
[1730348233542,5.7116,175.08,175.04,23.776884]
[1730348234515,5.7116,175.08,175.04,39.65879473]
[1730348234921,5.711,175.1,175.03,23.776884]
[1730348236419,5.711,175.1,175.03,39.65879473]
[1730348236931,21.59291073,175.1,175.03,39.65879473]
[1730348237442,5.7116,175.08,175.03,23.776884]
[1730348237622,21.59351073,175.08,175.03,39.65879473]
[1730348238038,5.7116,175.08,175.03,39.65879473]
[1730348239544,5.7116,175.08,175.03,23.776884]
[1730348240438,21.59291073,175.1,175.03,39.65879473]
[1730348240635,15.88191073,175.09,175.04,15.88191073]
[1730348241743,5.7113,175.09,175.03,39.65879473]
[1730348243539,85.88191073,175.14,175.08,39.65879473]
[1730348243724,21.59191073,175.13,175.09,15.88191073]
[1730348243919,85.88191073,175.12,175.08,15.88191073]
[1730348244229,85.88191073,175.12,175.07,15.88191073]
[1730348244540,15.88191073,175.11,175.07,15.88191073]
[1730348245127,5.711,175.1,175.06,15.88191073]
[1730348245537,5.711,175.1,175.07,15.88191073]
[1730348245837,5.711,175.1,175.05,15.88191073]
[1730348248623,5.7106,175.11,175.05,15.88191073]
[1730348249126,5.7106,175.11,175.04,15.88191073]
[1730348249328,5.7106,175.11,175.05,23.776884]
[1730348250748,15.88191073,175.09,175.05,23.776884]
[1730348250948,15.88191073,175.1,175.05,39.65879473]
[1730348251567,35.86921073,175.11,175.06,15.88191073]
[1730348251929,15.88191073,175.1,175.05,39.65879473]
[1730348252128,5.7113,175.09,175.05,39.65879473]
[1730348253343,15.88191073,175.1,175.05,39.65879473]
[1730348253847,35.86921073,175.11,175.05,23.776884]
[1730348254349,35.86921073,175.11,175.06,1.43047659]
[1730348254545,35.86921073,175.11,175.05,23.776884]
[1730348254925,35.86921073,175.11,175.06,1.43047659]
[1730348255245,70.0,175.03,174.97,15.88191073]
[1730348255454,70.0,175.03,174.93,0.3124]
[1730348255455,15.88191073,175.01,174.98,1.43088206]
[1730348255629,15.88191073,175.02,174.99,1.43088206]
[1730348255830,15.88191073,175.01,175.0,1.43088206]
[1730348257258,15.88191073,175.01,174.96,15.88191073]
[1730348257551,5.7142,175.0,174.96,15.88191073]
[1730348259145,15.88191073,175.02,174.96,15.88191073]
[1730348259459,21.59551073,175.02,174.96,15.88191073]
[1730348260546,21.59551073,175.02,174.96,23.776884]
[1730348261047,15.88191073,175.01,174.96,23.776884]
[1730348261232,5.7142,175.0,174.96,23.776884]
[1730348262244,15.88191073,174.99,174.94,16.19651073]
[1730348262555,5.7142,175.0,174.94,0.3146]
[1730348262556,15.88191073,174.98,174.94,0.3146]
[1730348263765,5.7152,174.97,174.94,16.19651073]
[1730348264757,15.88191073,174.98,174.94,0.3146]
[1730348265060,21.59681073,174.98,174.94,0.3146]
[1730348265554,15.88191073,174.97,174.94,0.3146]
[1730348265944,15.88191073,174.98,174.94,0.3146]
[1730348267232,5.7152,174.97,174.94,0.3146]
[1730348270461,15.88191073,174.97,174.94,0.3146]
[1730348271161,15.88191073,174.98,174.94,0.3146]
[1730348271667,5.7152,174.97,174.94,0.3146]
[1730348271865,15.88191073,174.96,174.94,0.3146]
[1730348272166,5.7152,174.97,174.94,0.3146]
[1730348272356,21.59711073,174.97,174.94,0.3146]
[1730348274566,15.89277608,174.97,174.94,0.3146]
[1730348276279,5.7152,174.97,174.94,0.3146]
[1730348279972,10.17757608,174.95,174.94,0.3146]
[1730348280281,15.89277608,174.97,174.94,0.3146]
[1730348280482,10.17757608,174.96,174.94,0.3146]
[1730348280965,15.89277608,174.97,174.94,0.3146]
[1730348281348,10.17757608,174.96,174.94,0.3146]
[1730348282578,15.89317608,174.96,174.94,0.3146]
[1730348283875,10.17757608,174.95,174.94,0.3146]
[1730348284664,15.89317608,174.96,174.94,0.3146]
[1730348285547,10.17757608,174.95,174.94,0.3146]
[1730348286975,10.17757608,174.98,174.94,0.3146]
[1730348287273,10.17757608,174.98,174.94,6.0306]
[1730348287662,10.17757608,174.98,174.94,14.6052]
[1730348288577,10.17757608,174.97,174.94,14.6052]
[1730348290079,10.17757608,174.96,174.94,14.6052]
[1730348290474,10.17757608,174.95,174.94,0.3146]
[1730348290858,15.89337608,174.96,174.94,0.3146]
[1730348292888,10.17757608,174.97,174.94,0.3146]
[1730348293573,10.17757608,174.98,174.94,0.3146]
[1730348294383,10.17757608,174.97,174.94,0.3146]
[1730348295382,15.89287608,174.97,174.94,0.3146]
[1730348295778,15.89247608,174.98,174.94,0.3146]
[1730348296771,10.17757608,174.97,174.94,0.3146]
[1730348296976,5.7149,174.98,174.94,0.3146]
[1730348298978,5.7149,174.98,174.94,10.49217608]
[1730348300087,5.7145,175.0,174.96,10.17757608]
[1730348300581,20.0,175.01,174.96,10.17757608]
[1730348301564,20.0,175.01,174.96,15.89297608]
[1730348301764,35.89157608,175.01,174.96,15.89297608]
[1730348302490,10.17757608,174.99,174.94,20.3213]
[1730348302783,10.17757608,174.98,174.94,14.6052]
[1730348303179,10.17757608,174.99,174.94,24.78277608]
[1730348303359,10.17757608,174.99,174.94,30.49897608]
[1730348304688,15.89207608,175.0,174.95,10.17757608]
[1730348306069,5.7145,175.0,174.95,15.89327608]
[1730348307179,10.17757608,175.0,174.95,15.89327608]
[1730348308473,15.89187608,175.0,174.95,15.89327608]
[1730348310488,15.89147608,175.01,174.96,10.17757608]
[1730348310685,5.7139,175.01,174.96,10.17757608]
[1730348311473,5.7139,175.01,174.96,15.89307608]
[1730348312676,10.17757608,175.01,174.96,15.89307608]
[1730348313990,15.89157608,175.01,174.96,15.89307608]
[1730348315772,10.17757608,175.01,174.97,23.776884]
[1730348315980,15.89117608,175.02,174.97,23.776884]
[1730348317279,10.17757608,175.01,174.97,23.776884]
[1730348317883,10.17757608,175.02,174.97,43.779984]
[1730348318083,15.89117608,175.02,174.97,43.779984]
[1730348318387,10.17757608,175.01,174.97,43.779984]
[1730348320481,10.17757608,175.0,174.97,38.064984]
[1730348325500,10.17757608,175.01,174.97,14.2881]
[1730348327285,10.17757608,175.0,174.97,14.2881]
[1730348327478,10.17757608,175.0,174.96,23.776884]
[1730348328004,10.17757608,175.0,174.95,23.776884]
[1730348328884,15.89187608,175.0,174.95,29.492684]
[1730348329708,15.89187608,175.0,174.95,39.67026008]
[1730348329709,5.7143,175.0,174.95,39.67026008]
[1730348330506,5.7139,175.01,174.97,23.776884]
[1730348330705,15.1776,175.03,174.98,10.17757608]
[1730348330706,15.89097608,175.03,174.98,10.17757608]
[1730348334505,15.89097608,175.03,174.97,39.66956008]
[1730348335509,10.17757608,175.0,174.97,23.776884]
[1730348335882,10.17757608,175.01,174.97,23.776884]
[1730348336580,15.89147608,175.01,174.97,23.776884]
[1730348341095,10.17757608,175.0,174.95,30.18297608]
[1730348341298,10.17757608,175.0,174.95,20.0054]
[1730348342200,15.89187608,175.0,174.95,20.0054]
[1730348343615,15.89187608,175.0,174.95,30.18297608]
[1730348344307,10.17757608,175.0,174.95,20.0054]
[1730348344514,10.17757608,175.0,174.95,30.18297608]
[1730348344708,10.17757608,175.01,174.95,30.18297608]
[1730348345619,10.17757608,174.99,174.95,14.2897]
[1730348346918,15.89217608,174.99,174.95,14.2897]
[1730348347115,10.17757608,174.98,174.95,14.2897]
[1730348347614,10.17757608,174.98,174.94,0.3146]
[1730348348388,5.7146,174.99,174.94,0.3146]
[1730348348389,10.17757608,174.97,174.94,0.3146]
[1730348348808,15.89307608,174.97,174.94,0.3146]
[1730348349095,10.17757608,174.96,174.94,0.3146]
[1730348349418,10.17757608,174.95,174.94,0.3146]
[1730348350398,30.17757608,174.95,174.94,0.3146]
[1730348350600,35.89347608,174.95,174.94,0.3146]
[1730348350801,30.17757608,174.95,174.94,0.3146]
[1730348354921,10.17757608,174.95,174.94,0.3146]
[1730348355106,5.7152,174.98,174.94,0.3146]
[1730348355418,10.17757608,174.98,174.94,0.3146]
[1730348355920,10.17757608,174.97,174.94,0.3146]
[1730348356401,10.17757608,174.96,174.94,0.3146]
[1730348359228,10.17757608,174.98,174.94,0.3146]
[1730348359430,10.17757608,174.97,174.94,0.3146]
[1730348360635,70.0,175.01,174.95,10.17757608]
[1730348360636,20.0,175.0,174.95,10.17757608]
[1730348360832,30.17757608,175.0,174.95,10.17757608]
[1730348361930,35.89207608,175.0,174.95,10.17757608]
[1730348364516,15.89217608,174.99,174.94,30.49877608]
[1730348365531,10.17757608,174.98,174.94,14.6052]
[1730348369424,10.17757608,174.97,174.94,14.6052]
[1730348370244,10.17757608,174.98,174.94,14.6052]
[1730348370544,10.17757608,174.97,174.94,14.6052]
[1730348375447,10.17757608,174.97,174.94,0.3146]
[1730348375754,10.17757608,174.98,174.94,0.3146]
[1730348376845,10.17757608,174.98,174.94,24.091484]
[1730348377642,10.17757608,174.97,174.94,0.3146]
[1730348378633,10.17757608,174.96,174.94,0.3146]
[1730348380054,15.89327608,174.96,174.94,0.3146]
[1730348382951,10.17757608,174.95,174.94,0.3146]
[1730348385750,15.89347608,174.95,174.94,0.3146]
[1730348390536,51.41697608,174.95,174.94,0.3146]
[1730348390740,51.51697608,174.95,174.94,0.0001]
[1730348391051,57.23598009,174.95,174.94,0.0001]
[1730348391560,37.23598009,174.95,174.94,0.0001]
[1730348392553,70.1,174.94,174.93,0.0001]
[1730348392746,80.27757608,174.94,174.93,0.0001]
[1730348393256,70.0,174.9,174.8,21.2972]
[1730348393452,10.17757608,174.84,174.8,21.2972]
[1730348393829,10.17757608,174.84,174.81,23.776884]
[1730348394536,10.17757608,174.84,174.81,29.497284]
[1730348395452,10.17757608,174.84,174.81,23.776884]
[1730348395673,10.17757608,174.84,174.81,29.497284]
[1730348396368,10.17757608,174.85,174.81,43.798484]
[1730348397237,10.17757608,174.84,174.81,43.798484]
[1730348400464,10.17757608,174.84,174.81,20.0216]
[1730348400646,10.17757608,174.83,174.81,14.3012]
[1730348404641,10.17757608,174.85,174.81,14.3012]
[1730348408070,10.17757608,174.84,174.81,14.3012]
[1730348410568,10.17757608,174.83,174.81,14.3012]
[1730348411559,10.17757608,174.83,174.79,15.89867608]
[1730348412069,10.17757608,174.83,174.79,5.7211]
[1730348413547,10.17757608,174.82,174.78,15.89897608]
[1730348414069,10.17757608,174.82,174.78,30.20257608]
[1730348416469,10.17757608,174.83,174.78,30.20257608]
[1730348418978,10.17757608,174.79,174.73,10.17757608]
[1730348419199,10.17757608,174.78,174.72,26.25297608]
[1730348419347,10.17757608,174.77,174.72,31.97617608]
[1730348419550,10.17757608,174.78,174.73,10.17757608]
[1730348419772,6.4329,174.83,174.77,10.17757608]
[1730348419963,6.0556,174.87,174.75,14.3061]
[1730348420152,11.7742,174.87,174.75,14.3061]
[1730348420569,11.7742,174.87,174.75,14.4061]
[1730348420880,10.17757608,174.83,174.78,10.17757608]
[1730348421077,10.17757608,174.83,174.79,5.7211]
[1730348424206,10.17757608,174.85,174.8,10.17757608]
[1730348424392,10.17757608,174.85,174.79,20.0239]
[1730348424393,10.17757608,174.86,174.81,10.17757608]
[1730348425984,10.17757608,174.86,174.8,10.17757608]
[1730348426387,16.23317608,174.87,174.82,10.17757608]
[1730348426587,10.17757608,174.87,174.82,10.17757608]
[1730348427273,10.17757608,174.86,174.81,10.17757608]
[1730348428078,10.17757608,174.86,174.82,5.7201]
[1730348432489,10.17757608,174.87,174.82,10.17757608]
[1730348433162,10.17757608,174.86,174.81,10.17757608]
[1730348434295,10.17757608,174.86,174.81,15.89787608]
[1730348437592,15.89617608,174.87,174.81,15.89787608]
[1730348437893,10.17757608,174.86,174.81,15.89787608]
[1730348438500,10.17757608,174.86,174.8,10.17757608]
[1730348439502,15.89637608,174.86,174.8,10.17757608]
[1730348440487,15.89637608,174.86,174.8,30.20007608]
[1730348440683,10.17757608,174.85,174.8,20.0225]
[1730348441292,10.17757608,174.84,174.8,14.302]
[1730348441993,10.17757608,174.82,174.78,5.7213]
[1730348443193,10.17757608,174.83,174.78,15.89887608]
[1730348445581,10.17757608,174.82,174.77,21.62037167]
[1730348446486,16.53857608,174.85,174.79,10.17757608]
[1730348446795,15.89647608,174.86,174.81,10.17757608]
[1730348447293,10.17757608,174.85,174.8,10.17757608]
[1730348448106,15.89677608,174.85,174.8,10.17757608]
[1730348450277,10.17757608,174.84,174.79,10.17757608]
[1730348450499,10.17757608,174.83,174.78,30.20257608]
[1730348451000,10.17757608,174.82,174.78,20.025]
[1730348454485,15.89767608,174.83,174.78,24.48117608]
[1730348454683,15.89767608,174.83,174.78,30.20257608]
[1730348455611,10.17757608,174.83,174.78,30.20257608]
[1730348459609,15.89737608,174.83,174.78,30.20257608]
[1730348459783,40.71030432,174.87,174.78,30.20257608]
[1730348459784,10.17757608,174.84,174.78,30.20257608]
[1730348459983,10.17757608,174.84,174.79,10.17757608]
[1730348460478,10.17757608,174.86,174.81,10.17757608]
[1730348460905,10.17757608,174.86,174.81,15.89787608]
[1730348462089,10.17757608,174.86,174.82,29.496884]
[1730348463096,10.17757608,174.85,174.82,23.776884]
[1730348463607,10.17757608,174.84,174.79,10.17757608]
[1730348464396,10.17757608,174.84,174.78,30.20257608]
[1730348464715,5.7191,174.86,174.77,15.89927608]
[1730348464716,10.17757608,174.82,174.77,15.89927608]
[1730348464919,10.17757608,174.82,174.77,10.17757608]
[1730348465118,10.17757608,174.81,174.76,15.89967608]
[1730348465297,15.89817608,174.81,174.76,15.89967608]
[1730348465497,10.17757608,174.8,174.76,20.0274]
[1730348465713,10.17757608,174.79,174.74,15.89850342]
[1730348465899,10.17757608,174.79,174.74,15.90007608]
[1730348466095,10.17757608,174.77,174.73,5.72092734]
[1730348466298,10.17757608,174.77,174.72,21.62180342]
[1730348466510,10.17757608,174.77,174.72,15.90087608]
[1730348466721,10.17757608,174.76,174.71,21.62220342]
[1730348467216,10.17757608,174.76,174.71,15.90127608]
[1730348467516,15.89977608,174.76,174.71,15.90127608]
[1730348467696,10.17757608,174.76,174.71,15.90127608]
[1730348468112,10.17757608,174.76,174.72,23.776884]
[1730348469900,10.17757608,174.76,174.72,29.500184]
[1730348470503,10.17757608,174.75,174.72,23.776884]
[1730348470715,10.17757608,174.75,174.71,29.500584]
[1730348471021,10.17757608,174.76,174.71,39.67816008]
[1730348471206,10.17757608,174.75,174.71,29.500584]
[1730348472409,10.17757608,174.73,174.7,29.500884]
[1730348472726,10.17757608,174.72,174.69,23.776884]
[1730348473019,10.17757608,174.73,174.69,23.776884]
[1730348474219,10.17757608,174.73,174.69,29.501184]
[1730348474817,10.17757608,174.74,174.69,39.67876008]
[1730348475328,10.17757608,174.76,174.71,23.776884]
[1730348475614,10.17757608,174.76,174.71,33.95446008]
[1730348476745,10.17757608,174.76,174.73,23.776884]
[1730348478300,10.17757608,174.79,174.75,23.776884]
[1730348478619,10.17757608,174.78,174.75,23.776884]
[1730348478809,10.17757608,174.78,174.74,23.776884]
[1730348480499,10.17757608,174.79,174.74,53.98396008]
[1730348482815,10.17757608,174.78,174.74,43.806384]
[1730348483723,10.17757608,174.81,174.76,10.17757608]
[1730348483931,32.18437608,174.82,174.76,10.17757608]
[1730348484309,32.18437608,174.82,174.77,10.17757608]
[1730348484509,10.17757608,174.84,174.79,10.17757608]
[1730348484712,10.17757608,174.85,174.8,10.17757608]
[1730348485606,10.17757608,174.84,174.79,10.17757608]
[1730348485808,10.17757608,174.83,174.78,10.17757608]
[1730348486019,10.17757608,174.82,174.77,10.17757608]
[1730348486224,10.17757608,174.81,174.76,30.20497608]
[1730348486809,10.17757608,174.8,174.74,10.17757608]
[1730348487012,10.17757608,174.79,174.74,10.17757608]
[1730348487407,10.17757608,174.78,174.73,15.90057608]
[1730348488136,5.7218,174.77,174.73,10.17757608]
[1730348488320,5.7218,174.77,174.71,14.3087]
[1730348488321,15.89937608,174.77,174.72,10.17757608]
[1730348489230,10.17757608,174.77,174.72,10.17757608]
[1730348490019,10.17757608,174.76,174.72,5.7233]
[1730348490223,10.17757608,174.75,174.72,5.7233]
[1730348490413,10.17757608,174.76,174.71,24.48627608]
[1730348490729,10.17757608,174.75,174.71,20.0324]
[1730348490925,10.17757608,174.75,174.69,10.17757608]
[1730348491503,10.17757608,174.74,174.69,10.17757608]
[1730348492230,10.17757608,174.74,174.69,15.90187608]
[1730348494430,10.17757608,174.75,174.69,15.90187608]
[1730348494619,10.17757608,174.76,174.7,10.17757608]
[1730348495402,10.17757608,174.75,174.7,10.17757608]
[1730348495605,10.17757608,174.74,174.69,24.48857608]
[1730348496431,10.17757608,174.72,174.69,14.311]
[1730348496734,10.17757608,174.72,174.67,15.90247608]
[1730348497408,10.17757608,174.72,174.67,30.21517608]
[1730348499446,10.17757608,174.72,174.67,24.49027608]
[1730348499733,10.17757608,174.72,174.67,30.21527608]
[1730348504435,10.17757608,174.71,174.67,20.0377]
[1730348505712,10.17757608,174.72,174.67,30.21527608]
[1730348506919,10.17757608,174.71,174.67,30.21527608]
[1730348512241,10.17757608,174.71,174.67,20.0377]
[1730348514257,10.17757608,174.7,174.67,20.0377]
[1730348515219,10.17757608,174.7,174.67,14.3127]
[1730348515422,10.17757608,174.68,174.66,0.5952755]
[1730348515622,10.17757608,174.67,174.66,0.5952755]
[1730348517558,15.90257608,174.67,174.66,0.5952755]
[1730348518225,15.90227608,174.68,174.66,0.5952755]
[1730348518541,10.17757608,174.7,174.66,20.6336755]
[1730348518748,10.17757608,174.68,174.66,14.9082755]
[1730348518930,10.17757608,174.68,174.66,0.5952755]
[1730348521347,5.7243,174.7,174.66,0.5952755]
[1730348521348,15.90257608,174.67,174.66,0.5952755]
[1730348521835,31.78567608,174.67,174.66,0.5952755]
[1730348522930,38.33447608,174.67,174.66,0.5952755]
[1730348523830,80.17757608,174.67,174.66,0.5952755]
[1730348524035,85.90257608,174.67,174.66,0.5952755]
[1730348524250,86.00257608,174.67,174.66,0.5952755]
[1730348524925,108.69497608,174.67,174.66,0.5952755]
[1730348525530,108.69497608,174.67,174.54,14.3226]
[1730348525531,70.0,174.62,174.55,5.7289]
[1730348525828,10.17757608,174.59,174.55,5.7289]
[1730348526034,10.17757608,174.6,174.55,10.17757608]
[1730348526225,10.17757608,174.59,174.54,14.3226]
[1730348526425,10.17757608,174.56,174.54,14.3226]
[1730348526651,10.17757608,174.56,174.52,5.7298]
[1730348527247,10.17757608,174.59,174.53,10.17757608]
[1730348527426,15.90527608,174.59,174.53,15.90707608]
[1730348528350,10.17757608,174.6,174.55,10.17757608]
[1730348528727,10.17757608,174.61,174.56,10.17757608]
[1730348529048,10.17757608,174.6,174.55,10.17757608]
[1730348529434,75.7267,174.63,174.51,69.36140432]
[1730348529435,10.17757608,174.61,174.56,10.17757608]
[1730348529627,10.17757608,174.62,174.56,10.17757608]
[1730348529959,75.7267,174.63,174.58,10.17757608]
[1730348529960,10.17757608,174.63,174.58,10.17757608]
[1730348530844,25.27517608,174.64,174.59,10.17757608]
[1730348531332,15.0976,174.64,174.58,10.17757608]
[1730348531654,25.27517608,174.64,174.59,5.7277]
[1730348532027,25.27517608,174.64,174.59,15.90527608]
[1730348532354,25.27517608,174.64,174.59,30.22447608]
[1730348534255,10.17757608,174.66,174.6,10.17757608]
[1730348534830,10.17757608,174.63,174.58,10.17757608]
[1730348535156,10.17757608,174.63,174.58,15.90547608]
[1730348535530,10.17757608,174.65,174.59,10.17757608]
[1730348536353,10.17757608,174.64,174.59,10.17757608]
[1730348536653,10.17757608,174.64,174.6,5.7273]
[1730348537040,10.17757608,174.68,174.62,10.17757608]
[1730348537231,10.17757608,174.68,174.63,10.17757608]
[1730348537860,10.17757608,174.68,174.62,10.17757608]
[1730348538151,10.17757608,174.67,174.62,10.17757608]
[1730348538658,10.17757608,174.67,174.63,5.7263]
[1730348540227,10.17757608,174.68,174.63,10.17757608]
[1730348542263,6.2729,174.69,174.64,10.17757608]
[1730348542570,16.45047608,174.69,174.64,10.17757608]
[1730348542742,10.17757608,174.68,174.63,10.17757608]
[1730348543063,10.17757608,174.67,174.62,10.17757608]
[1730348543752,10.17757608,174.68,174.63,10.17757608]
[1730348544287,10.17757608,174.68,174.62,10.17757608]
[1730348544462,10.17757608,174.68,174.63,10.17757608]
[1730348545545,10.17757608,174.67,174.62,10.17757608]
[1730348545743,10.17757608,174.67,174.63,23.776884]
[1730348546646,10.17757608,174.67,174.64,5.726]
[1730348547261,16.45047608,174.69,174.64,15.90357608]
[1730348547442,5.7241,174.7,174.64,15.90357608]
[1730348547443,15.90167608,174.7,174.64,15.90357608]
[1730348547647,10.17757608,174.69,174.64,15.90357608]
[1730348548069,80.17757608,174.71,174.66,10.17757608]
[1730348548572,85.90137608,174.71,174.66,10.17757608]
[1730348550457,10.17757608,174.71,174.66,10.17757608]
[1730348550680,10.17757608,174.71,174.66,30.21637608]
[1730348550847,25.77737608,174.72,174.67,10.17757608]
[1730348551548,31.50087608,174.72,174.67,10.17757608]
[1730348551752,10.17757608,174.71,174.66,30.21637608]
[1730348556570,10.17757608,174.71,174.67,15.90257608]
[1730348557862,10.17757608,174.72,174.68,10.17757608]
[1730348558066,10.17757608,174.74,174.69,10.17757608]
[1730348559297,6.2023,174.78,174.69,10.17757608]
[1730348559298,10.17757608,174.79,174.73,10.17757608]
[1730348559579,15.4221,174.8,174.76,10.17757608]
[1730348559749,80.17757608,174.81,174.76,10.17757608]
[1730348560676,70.0,174.81,174.76,10.17757608]
[1730348561477,10.17757608,174.8,174.75,15.89997608]
[1730348561678,80.17757608,174.81,174.76,10.17757608]
[1730348561853,70.0,174.81,174.77,10.17757608]
[1730348562048,80.17757608,174.81,174.76,10.17757608]
[1730348563087,80.17757608,174.81,174.76,15.89957608]
[1730348564767,10.17757608,174.79,174.74,33.95446008]
[1730348564963,10.17757608,174.77,174.74,23.776884]
[1730348565273,10.17757608,174.77,174.74,29.499584]
[1730348565901,10.17757608,174.77,174.73,10.17757608]
[1730348566195,10.17757608,174.76,174.72,5.7234]
[1730348566364,10.17757608,174.75,174.71,20.0324]
[1730348567000,10.17757608,174.76,174.71,30.20997608]
[1730348569494,10.17757608,174.77,174.72,10.17757608]
[1730348570168,10.17757608,174.78,174.73,33.95446008]